Cogmind - Beta 13 @@@ ROGUE MODE // 2024.06.26 @ 12:44:05 Player: Sionnis Result: Destroyed by as-37373 with Assembled Rifle Performance ------------- Evolutions (4) 2000 Regions Visited (12) 2400 Robots Destroyed (145) 725 Value Destroyed (3999) 3999 Prototype IDs (27) 540 Alien Tech Used (0) 0 Bonus (2755) 2755 TOTAL SCORE: 12419 Bonus ------- High Alert Combat Kills 65 Follower Combat Kills 576 Met Imprinter 300 Destroyed Z-Imprinter 1000 Triggered Deep Caves Wall 500 Exposed GOLEM Chamber 500 Friendly Fire -186 Cogmind --------- Core Integrity 0/850 Matter 295/300 Energy 83/100 System Corruption 3% Temperature Cool (0) Movement Core (50) Location -6/Deep Caves Parts ------- > --- POWER (1) -------- (None) > --- PROPULSION (5) --- (None) > --- UTILITY (7) ------ (None) > --- WEAPON (2) ------- (None) > --- INVENTORY (5) ---- Zionite Light DM Reactor Huge Storage Unit Improved Propulsion Shielding Improved Propulsion Shielding Improved Utility Shielding Peak State ------------ > --- POWER ------------ Zionite Light DM Reactor > --- PROPULSION ------- Zionite Composite Leg I Improved Flight Unit Improved VTOL Module Improved VTOL Module Improved VTOL Module > --- UTILITY ---------- Medium Storage Unit Gravity Neutralizer Enhanced Optical Array Advanced Sensor Array Improved Signal Interpreter Improved Hacking Suite Improved Hacking Suite > --- WEAPON ----------- Zionite Laser-S CR-A16's Pointy Stick > --- INVENTORY -------- Light Fission Core Huge Storage Unit Improved Propulsion Shielding Improved Propulsion Shielding Improved Utility Shielding Improved Utility Shielding Zionite Light Carapace Improved Hacking Suite System Shield Long-range Missile Launcher [Rating: 72] Favorites ----------- Power Light Angular Momentum Engine Engine Light Angular Momentum Engine Power Core Light Nuclear Core Reactor Zionite Light DM Reactor Propulsion Armored Treads Treads Armored Treads Leg Aluminum Leg Wheel Wheel Hover Unit Zionite Glidesys I Flight Unit Improved VTOL Module Utility Huge Storage Unit Device Improved Heat Sink Storage Huge Storage Unit Processor Improved Targeting Computer Hackware Improved Hacking Suite Protection Hardened Medium Armor Plating Weapon Advanced Beam Cannon Energy Gun Beamcaster Energy Cannon Advanced Beam Cannon Ballistic Gun Improved Assault Rifle Ballistic Cannon Light Cannon Launcher Mini Grenade Launcher Impact Weapon Hammer Slashing Weapon Katana Piercing Weapon CR-A16's Pointy Stick Build | -11 -10 -10 -9 -9 -8 -8 -8 -6 -6 -6 -6 -6 ------- Run | Yrd Mat Min Mat Min Mat Sto Rec Fac Low Low Zio Dee Slots Evolved 8 | . . . 2 . 2 . . 4 . . . . Power . | . . . . . . . . . . . . . Propulsion 3 | . . . 1 . 1 . . 1 . . . . Utility 5 | . . . 1 . 1 . . 3 . . . . Weapon . | . . . . . . . . . . . . . Parts Attached 175 | 5 14 2 28 4 24 12 16 28 3 6 5 28 Power 21 | 1 1 . 2 2 2 1 1 3 1 1 3 3 Engine 11 | 1 . . 2 1 2 1 . . . 1 3 . Core 7 | . 1 . . 1 . . 1 2 1 . . 1 Reactor 3 | . . . . . . . . 1 . . . 2 Propulsion 34 | 2 2 2 6 . 8 5 4 1 . . . 4 Treads 21 | 2 1 1 5 . 7 5 . . . . . . Leg 2 | . 1 . . . . . . . . . . 1 Wheel 1 | . . 1 . . . . . . . . . . Hover 1 | . . . . . . . . . . . . 1 Flight 9 | . . . 1 . 1 . 4 1 . . . 2 Utility 89 | . 6 . 14 . 9 3 9 24 2 3 . 19 Device 28 | . . . 3 . 3 1 . 10 2 1 . 8 Storage 8 | . 5 . 1 . . . 1 . . . . 1 Processor 11 | . . . 3 . . 1 1 6 . . . . Hackware 7 | . 1 . . . . . 2 4 . . . . Protection 35 | . . . 7 . 6 1 5 4 . 2 . 10 Artifact . | . . . . . . . . . . . . . Weapon 31 | 2 5 . 6 2 5 3 2 . . 2 2 2 Energy Gun 5 | 1 1 . 1 1 . . . . . . . 1 Energy Cannon 3 | . . . 1 . 1 1 . . . . . . Ballistic Gun 13 | 1 3 . 3 1 3 2 . . . . . . Ballistic Cannon 1 | . 1 . . . . . . . . . . . Launcher 2 | . . . . . . . 1 . . 1 . . Special Weapon . | . . . . . . . . . . . . . Impact Weapon 1 | . . . 1 . . . . . . . . . Slashing Weapon 5 | . . . . . 1 . 1 . . 1 1 1 Piercing Weapon 1 | . . . . . . . . . . . 1 . Special Melee Weapon . | . . . . . . . . . . . . . Unidentified Prototypes 19 | . . . 6 . 1 . . 3 . . . 9 Corrupted Parts 2 | . . . . . . . 1 1 . . . . System Corruption 6 | . . . . . . . 3 3 . . . . Parts Lost 32 | . 1 . 4 1 7 1 2 2 . . . 14 Power 5 | . . . 1 . 1 . . 1 . . . 2 Propulsion 10 | . 1 . 1 . 1 1 1 . . . . 5 Utility 12 | . . . 2 . 3 . 1 . . . . 6 Weapon 5 | . . . . 1 2 . . 1 . . . 1 Highest Loss Streak 13 | . 1 . 1 1 5 1 2 2 . . . 13 To Critical Strikes . | . . . . . . . . . . . . . Average Slot Usage (%) 96 | . 92 99 98 99 99 98 91 98 92 93 98 96 Engine 6 | . 10 . 9 4 9 8 8 . . 4 6 1 Core 3 | . 3 14 1 6 . . . 5 5 1 . 3 Treads 25 | . 24 19 32 33 35 35 28 . . . . . Flight 5 | . . . . . . . . 32 33 33 33 32 Device 3 | . . . . . 6 9 8 5 12 7 6 4 Storage 9 | . 9 14 11 11 9 9 9 6 6 6 6 6 Processor 6 | . . . 4 11 6 5 8 17 13 13 13 13 Hackware 5 | . 11 14 3 . . . . 12 13 13 13 12 Protection 8 | . . . 13 11 14 12 8 2 . 4 6 7 Energy Gun 1 | . 6 . . 2 6 . . . . . . . Energy Cannon 4 | . . . 8 8 1 8 8 . . . . . Ballistic Gun 9 | . 19 14 10 11 9 8 8 . . . . . Ballistic Cannon 1 | . 1 14 2 . . . . . . . . . Slashing Weapon 1 | . . . . . . . . 6 6 6 6 4 Naked Turns 2 | . . . . . . . . . . . . 2 Heaviest Build 113 | 7 49 49 103 102 110 113 105 21 27 36 25 29 Greatest Support 80 | 40 40 42 62 60 80 80 80 25 37 37 25 37 Greatest Overweight (x) 9 | . 2 4 2 1 2 2 1 . . . . 9 Average Overweight (x) . | . . 2 1 1 1 1 . . . . . . Largest Inventory Capacity 25 | 5 25 20 25 25 25 25 25 10 10 10 10 10 Average Capacity 20 | 5 14 20 24 25 25 25 24 10 10 10 10 9 Most Carried 25 | 1 20 20 25 25 25 25 25 10 10 10 10 10 Average Carried 19 | . 9 19 23 24 24 24 24 9 9 9 10 9 Final Capacity 25 | 5 20 20 25 25 25 25 10 10 10 10 10 5 Final Carried 25 | 1 20 20 24 25 25 25 10 10 10 10 10 5 Class Distribution -------------------- 63% | Mutant 11% | Hacker-Scout 10% | Scavenger-Mutant 9% | Commander-Mutant Dominant Class ---------------- Mutant | -10/Materials Mutant | -10/Mines Mutant | -9/Materials Mutant | -9/Mines Mutant | -8/Materials Scavenger-Mutant | -8/Storage Commander-Mutant | -8/Recycling Commander-Scout | -6/Factory Hacker-Scout | -6/Lower Caves Hacker-Scout | -6/Lower Caves Hacker-Scout | -6/Zion Hacker-Scout | -6/Deep Caves Resources | -11 -10 -10 -9 -9 -8 -8 -8 -6 -6 -6 -6 -6 ----------- Run | Yrd Mat Min Mat Min Mat Sto Rec Fac Low Low Zio Dee Matter Collected 3882 | 241 386 257 871 270 670 270 157 178 242 51 59 230 Remotely . | . . . . . . . . . . . . . Salvage Created 5520 | . 535 138 1791 461 1417 535 245 165 233 . . . Parts 329 | . 38 11 129 24 73 29 11 7 7 . . . Haulers Intercepted 10 | . 2 . 3 . 4 . . 1 . . . . Recyclers Shooed 6 | . 1 . . 2 . 1 1 1 . . . . Parts Field Recycled . | . . . . . . . . . . . . . Retrieved Matter . | . . . . . . . . . . . . . Parts Self-Destructed 2 | . . . . . . . . . 2 . . . Prevented . | . . . . . . . . . . . . . Kills | -11 -10 -10 -9 -9 -8 -8 -8 -6 -6 -6 -6 -6 ------- Run | Yrd Mat Min Mat Min Mat Sto Rec Fac Low Low Zio Dee Combat Hostiles Destroyed 100 | . 11 1 40 13 21 9 5 . . . . . Melee 1 | . . . . . 1 . . . . . . . Guns 61 | . 10 . 19 8 17 5 2 . . . . . Cannons 37 | . 1 1 20 5 3 4 3 . . . . . AOE 1 | . . . 1 . . . . . . . . . Classes Destroyed 16 | . 6 2 4 . 1 . 1 . 2 . . . Worker 7 | . 1 1 1 . 4 . . . . . . . Builder 3 | . . 1 . . 1 . . 1 . . . . Hauler 10 | . 2 . 3 . 4 . . 1 . . . . Recycler 5 | . . 1 . . 3 1 . . . . . . Minesweeper 1 | . . . . . . . . . 1 . . . Mechanic 2 | . . . 1 1 . . . . . . . . Operator 9 | . 2 . 5 . 1 1 . . . . . . Watcher 7 | . 2 . 4 . . . . 1 . . . . Swarmer 22 | . 4 . 11 4 3 . . . . . . . Grunt 50 | . 7 1 17 7 12 6 . . . . . . Brawler 3 | . . . 1 1 . 1 . . . . . . Duelist 4 | . . . 1 1 1 . 1 . . . . . Sentry 20 | . . . 10 . 5 2 3 . . . . . Hunter 1 | . . . . . 1 . . . . . . . Programmer 1 | . . . . . . . 1 . . . . . Decomposer 1 | . . . . . . . . . 1 . . . Samaritan 4 | . . . . . . . . . 4 . . . Best Kill Streak 8 | . 4 2 8 4 6 5 3 2 1 . . . Combat Bots Only 7 | . 3 1 7 4 6 4 3 . . . . . Max Kills in Single Turn 2 | . 2 1 2 2 2 1 1 1 1 . . . Gunslinging . | . . . . . . . . . . . . . Exploded 1 | . . . 1 . . . . . . . . . Melee 1 | . . . . . 1 . . . . . . . Uniques/NPCs Destroyed 1 | . . . . . . . . . . . . 1 Z-Imprinter (-6/Deep Caves) Combat | -11 -10 -10 -9 -9 -8 -8 -8 -6 -6 -6 -6 -6 -------- Run | Yrd Mat Min Mat Min Mat Sto Rec Fac Low Low Zio Dee Hostile Shots Fired 695 | . 60 . 177 68 169 41 7 29 3 . . 141 Missed 218 | . 16 . 53 15 38 14 . 13 3 . . 66 Damage Taken 6924 | . 492 . 1464 626 1811 429 112 268 . . . 1722 Core 1446 | . 111 . 155 110 186 33 . 34 . . . 817 Absorbed by Shields 218 | . . . 20 . 192 . 6 . . . . . Redirected to Shielding 134 | . . . . . . . . 13 . . . 121 Ignored by Resistances 86 | . . . . . 86 . . . . . . . Regen/Repaired (Parts) 382 | . . . 382 . . . . . . . . . Core Remaining (%) 62 | 100 . 55 . 33 . . 60 . . . . . Volleys Fired 408 | . 69 7 137 40 112 34 8 1 . . . . Largest 2 | . 2 2 2 2 2 2 2 1 . . . . Hottest 100 | . 60 55 91 91 100 93 93 30 . . . . Shots Fired 788 | . 138 15 275 73 198 66 22 1 . . . . Gun 540 | . 134 8 136 41 175 33 13 . . . . . Cannon 247 | . 4 7 139 32 23 33 9 . . . . . Launcher 1 | . . . . . . . . 1 . . . . Special . | . . . . . . . . . . . . . Kinetic 503 | . 113 15 177 41 111 33 13 . . . . . Thermal 284 | . 25 . 98 32 87 33 9 . . . . . Explosive 1 | . . . . . . . . 1 . . . . Electromagnetic . | . . . . . . . . . . . . . Robot Hit Streak 20 | . 15 6 15 13 20 15 14 . . . . . Robot Miss Streak 5 | . 5 1 4 2 4 2 2 . . . . . Penetration Max . | . . . . . . . . . . . . . Secondary Targets . | . . . . . . . . . . . . . Shots Hit Robots 562 | . 79 9 182 56 151 46 14 16 8 . . 1 Core Hits 233 | . 38 5 69 22 63 20 7 3 6 . . . Critical Kills 1 | . . . 1 . . . . . . . . . Critical Parts Destroyed 3 | . . . 1 . 2 . . . . . . . Critical Strikes 10 | . . 1 3 . 6 . . . . . . . Burn 4 | . . . . . 4 . . . . . . . Destroy 4 | . . . 2 . 2 . . . . . . . Blast 2 | . . 1 1 . . . . . . . . . Melee Attacks 104 | . . . 2 . 5 . . 48 13 4 21 11 Impact 2 | . . . 2 . . . . . . . . . Slashing 76 | . . . . . 5 . . 48 13 4 4 2 Piercing 26 | . . . . . . . . . . . 17 9 Sneak Attacks 13 | . . . . . 1 . . 4 8 . . . Combat Hostiles . | . . . . . . . . . . . . . Follow-up Attacks . | . . . . . . . . . . . . . Damage Inflicted 11007 | . 707 133 3404 1084 3071 928 341 751 548 . . 40 Guns 5707 | . 645 28 1394 540 2563 371 166 . . . . . Cannons 3728 | . 53 96 1920 536 391 557 175 . . . . . Explosions 41 | . . . 41 . . . . . . . . . Melee 1454 | . . . . . 115 . . 751 548 . . 40 Ramming 77 | . 9 9 49 8 2 . . . . . . . Kinetic 5044 | . 540 124 1835 540 1468 371 166 . . . . . Thermal 4391 | . 158 . 1479 536 1486 557 175 . . . . . Explosive 41 | . . . 41 . . . . . . . . . Electromagnetic . | . . . . . . . . . . . . . Impact . | . . . . . . . . . . . . . Slashing 1454 | . . . . . 115 . . 751 548 . . 40 Piercing . | . . . . . . . . . . . . . Highest Corruption 8 | . 1 1 5 5 3 5 8 3 . . . 3 Average Corruption 3 | . 1 1 2 5 2 4 5 2 . . . 3 Corruption Purged 3 | . . . . . . . . 3 . . . . Corruption Blocked . | . . . . . . . . . . . . . Effects 194 | . 6 5 47 46 27 15 43 5 . . . . Message Errors 64 | . 1 2 15 17 9 5 10 5 . . . . Matter Fused 46 | . 3 1 14 12 6 2 8 . . . . . Heat Flow Errors 21 | . 1 . 5 6 4 1 4 . . . . . Energy Discharges 19 | . . 1 3 5 1 3 6 . . . . . Parts Rejected 2 | . . . . . 1 . 1 . . . . . Parts Fused 2 | . . . . 1 . . 1 . . . . . Data Loss (minor) 18 | . 1 . 4 3 3 2 5 . . . . . Data Loss (major) 2 | . . . 1 1 . . . . . . . . Misfires 12 | . . 1 3 1 1 . 6 . . . . . Alerts 4 | . . . 2 . . . 2 . . . . . Weapon Failures 4 | . . . . . 2 2 . . . . . . Overload Shots . | . . . . . . . . . . . . . Overflow Damage 187 | . . . 34 3 . . . 77 73 . . . Projectiles 37 | . . . 34 3 . . . . . . . . Explosions . | . . . . . . . . . . . . . Melee 150 | . . . . . . . . 77 73 . . . Knockbacks 4 | . . . 4 . . . . . . . . . Impact . | . . . . . . . . . . . . . Kinetic 4 | . . . 4 . . . . . . . . . Secondary . | . . . . . . . . . . . . . Self-Inflicted Damage 83 | . . . 42 . . . . 41 . . . . Shots 2 | . . . 1 . . . . 1 . . . . Rammed 12 | . 3 1 6 1 1 . . . . . . . Targets Rammed 12 | . 3 1 6 1 1 . . . . . . . Kicked . | . . . . . . . . . . . . . Crushed . | . . . . . . . . . . . . . Highest Temperature 515 | . 270 18 302 418 515 148 268 5 1 3 3 85 Average Temperature 88 | . 34 11 79 135 151 22 74 4 1 1 2 17 Received Heat Transfer 2453 | . 180 . 408 204 1083 225 39 36 . . . 278 Effects 10 | . . . 2 1 7 . . . . . . . Shutdowns 1 | . . . . . 1 . . . . . . . Energy Bleed 1 | . . . . 1 . . . . . . . . Interference 3 | . . . 2 . 1 . . . . . . . Matter Decay 1 | . . . . . 1 . . . . . . . Short Circuit 2 | . . . . . 2 . . . . . . . Damage (minor) 1 | . . . . . 1 . . . . . . . Damage (core) 1 | . . . . . 1 . . . . . . . Siege Activations . | . . . . . . . . . . . . . Robots Corrupted . | . . . . . . . . . . . . . Combat Hostiles . | . . . . . . . . . . . . . Parts Fried . | . . . . . . . . . . . . . Impact Corruptions 1 | . . . 1 . . . . . . . . . Robots Melted . | . . . . . . . . . . . . . Combat Hostiles . | . . . . . . . . . . . . . Parts Melted 13 | . 1 . 2 1 6 2 1 . . . . . Heat Transferred 7997 | . 375 . 2553 925 2849 999 296 . . . . . Parts Sabotaged . | . . . . . . . . . . . . . Parts Stolen . | . . . . . . . . . . . . . Parts Stripped . | . . . . . . . . . . . . . Power Chain Reactions . | . . . . . . . . . . . . . Alert | -11 -10 -10 -9 -9 -8 -8 -8 -6 -6 -6 -6 -6 ------- Run | Yrd Mat Min Mat Min Mat Sto Rec Fac Low Low Zio Dee Peak Influence 501 | . 154 30 501 369 334 261 72 195 . . . . Initial 129 | . . 19 . 109 33 129 32 . . . . . Average 135 | . 42 9 277 155 151 94 22 86 . . . . Maximum Alert Level 2 | . . . 2 1 1 1 . . . . . . Low Security (%) 69 | 100 100 100 27 63 60 89 100 100 . . . . Level 1 27 | . . . 59 36 39 10 . . . . . . Level 2 3 | . . . 13 . . . . . . . . . Level 3 . | . . . . . . . . . . . . . Level 4 . | . . . . . . . . . . . . . Level 5 . | . . . . . . . . . . . . . High Security . | . . . . . . . . . . . . . Max Security . | . . . . . . . . . . . . . Squads Dispatched 26 | . 3 1 6 1 3 3 . 9 . . . . Investigation 13 | . 1 1 3 . 1 2 . 5 . . . . Extermination 1 | . . . . . . . . 1 . . . . Reinforcement 10 | . 2 . 3 . 2 1 . 2 . . . . Assault 1 | . . . . 1 . . . . . . . . Garrison 1 | . . . . . . . . 1 . . . . Intercept . | . . . . . . . . . . . . . Searches Triggered . | . . . . . . . . . . . . . Construction Impeded . | . . . . . . . . . . . . . Haulers Reinforced 1 | . . . . . . . . 1 . . . . Active Scanning Responses . | . . . . . . . . . . . . . Cargo Convoy Interrupts . | . . . . . . . . . . . . . Stealth | -11 -10 -10 -9 -9 -8 -8 -8 -6 -6 -6 -6 -6 --------- Run | Yrd Mat Min Mat Min Mat Sto Rec Fac Low Low Zio Dee Distress Signals 6 | . 1 . 1 . 4 . . . . . . . Communications Jammed . | . . . . . . . . . . . . . Distress Signals . | . . . . . . . . . . . . . Times Spotted 260 | . 28 1 64 22 49 15 5 15 4 3 . 54 Peak Tracking Total 40 | . 5 1 7 4 8 4 2 10 3 3 . 40 Tactical Retreats 17 | . 1 . 3 1 8 . . . 2 . . 2 Traps | -11 -10 -10 -9 -9 -8 -8 -8 -6 -6 -6 -6 -6 ------- Run | Yrd Mat Min Mat Min Mat Sto Rec Fac Low Low Zio Dee Traps Triggered 9 | . 3 . . . 1 2 . 3 . . . . Indirectly . | . . . . . . . . . . . . . Trap Hack Attempts . | . . . . . . . . . . . . . Triggered . | . . . . . . . . . . . . . Disarmed . | . . . . . . . . . . . . . Reprogrammed . | . . . . . . . . . . . . . Reused . | . . . . . . . . . . . . . Traps Extracted . | . . . . . . . . . . . . . Installed . | . . . . . . . . . . . . . Triggered . | . . . . . . . . . . . . . Most Traps Carried 3 | . . 3 2 1 1 . . . . . . . Machines | -11 -10 -10 -9 -9 -8 -8 -8 -6 -6 -6 -6 -6 ---------- Run | Yrd Mat Min Mat Min Mat Sto Rec Fac Low Low Zio Dee Machines Disabled 14 | . . . 3 3 . 1 . 5 . 1 . 1 Max in Single Turn 2 | . . . 2 1 . 1 . . . 1 . . Garrison Access 1 | . . . . . . . . 1 . . . . Machines Repaired . | . . . . . . . . . . . . . Machines Dismantled . | . . . . . . . . . . . . . Machines Sabotaged . | . . . . . . . . . . . . . Overloaded Fab Kills . | . . . . . . . . . . . . . Hacking | -11 -10 -10 -9 -9 -8 -8 -8 -6 -6 -6 -6 -6 --------- Run | Yrd Mat Min Mat Min Mat Sto Rec Fac Low Low Zio Dee Machines Accessed 49 | . 5 2 12 1 6 6 7 8 1 1 . . Terminals 34 | . 4 . 9 . 5 5 6 5 . . . . Fabricators 2 | . . . . . . . . 2 . . . . Repair Stations 1 | . . . 1 . . . . . . . . . Recycling Units 4 | . 1 . 1 . . 1 1 . . . . . Scanalyzers 2 | . . . 1 . 1 . . . . . . . Garrison Access 1 | . . . . . . . . 1 . . . . Total Hacks 166 | . 16 2 45 1 27 22 17 34 1 1 . . Successful 93 | . 7 2 24 1 14 10 8 25 1 1 . . Failed 70 | . 8 . 20 . 13 12 9 8 . . . . Catastrophic 11 | . . . 2 . 3 3 1 2 . . . . Database Lockouts 3 | . 1 . 1 . . . . 1 . . . . Manual 84 | . 13 . 16 . 16 14 11 13 . . 1 . Terminals 118 | . 15 . 28 . 18 19 16 22 . . . . Fabricators 10 | . . . . . . . . 10 . . . . Repair Stations 8 | . . . 8 . . . . . . . . . Recycling Units 8 | . 1 . 3 . . 3 1 . . . . . Scanalyzers 15 | . . . 6 . 9 . . . . . . . Garrison Access 2 | . . . . . . . . 2 . . . . Terminal Hacks 45 | . 3 2 10 1 3 7 5 12 1 1 . . Part Schematic 4 | . 1 . . . 1 1 . 1 . . . . Robot Analysis 5 | . 2 . 1 . . . 2 . . . . . Prototype ID Bank 4 | . . . 3 . . . . 1 . . . . Open Door 6 | . . 2 . 1 . 1 . . 1 1 . . Branch Access Points 1 | . . . . . . . . 1 . . . . Emergency Access Points 2 | . . . . . . . . 2 . . . . Terminal Index 1 | . . . . . . 1 . . . . . . Fabricator Index 1 | . . . . . . . . 1 . . . . Scanalyzer Index 1 | . . . 1 . . . . . . . . . Alert Level 4 | . . . 1 . 1 1 . 1 . . . . Unreport Threat 5 | . . . 3 . . 1 1 . . . . . Locate Traps 5 | . . . 1 . 1 . . 3 . . . . Dispatch Records 2 | . . . . . . . 1 1 . . . . Hauler Manifests 2 | . . . . . . 1 1 . . . . . Registered Prototypes 1 | . . . . . . . . 1 . . . . Zone Layout 1 | . . . . . . 1 . . . . . . Fabricator Hacks 8 | . . . . . . . . 8 . . . . Load Schematic 4 | . . . . . . . . 4 . . . . Build 4 | . . . . . . . . 4 . . . . Repair Station Hacks 6 | . . . 6 . . . . . . . . . Scan Component 3 | . . . 3 . . . . . . . . . Repair 3 | . . . 3 . . . . . . . . . Recycling Unit Hacks 3 | . 1 . . . . 1 1 . . . . . Retrieve Components 3 | . 1 . . . . 1 1 . . . . . Scanalyzer 14 | . . . 6 . 8 . . . . . . . Insert Component 7 | . . . 3 . 4 . . . . . . . Analyze 7 | . . . 3 . 4 . . . . . . . Garrison Access Hacks 1 | . . . . . . . . 1 . . . . Seal Access 1 | . . . . . . . . 1 . . . . Unauthorized Hacks 16 | . 3 . 2 . 3 2 2 4 . . . . Terminals 15 | . 3 . 2 . 3 2 2 3 . . . . Assimilate 1 | . . . . . . . . 1 . . . . Botnet 12 | . 2 . 2 . 2 2 2 2 . . . . Operators 2 | . 1 . . . 1 . . . . . . . Fabricators 1 | . . . . . . . . 1 . . . . Prioritize 1 | . . . . . . . . 1 . . . . Repair Stations . | . . . . . . . . . . . . . Recycling Units . | . . . . . . . . . . . . . Scanalyzers . | . . . . . . . . . . . . . Garrison Access . | . . . . . . . . . . . . . Data Cores Recovered . | . . . . . . . . . . . . . Used . | . . . . . . . . . . . . . Hacking Detections 41 | . 4 . 11 . 6 6 6 8 . . . . Full Trace Events 12 | . 1 . 3 . 3 2 . 3 . . . . Feedback Events 3 | . . . 2 . 1 . . . . . . . Corruption 3 | . . . 2 . 1 . . . . . . . Feedback Blocked . | . . . . . . . . . . . . . Robot Schematics Acquired 4 | . . . . . . . . . . . 4 . Robots Built . | . . . . . . . . . . . . . Authchips . | . . . . . . . . . . . . . Time . | . . . . . . . . . . . . . Total Robot Build Rating . | . . . . . . . . . . . . . Part Schematics Acquired 25 | . 1 . 3 . 5 1 . 1 . . 14 . Parts Built 6 | . . . . . . . . 6 . . . . Authchips 2 | . . . . . . . . 2 . . . . Time 124 | . . . . . . . . 124 . . . . Total Part Build Rating 22 | . . . . . . . . 22 . . . . Parts Repaired 3 | . . . 3 . . . . . . . . . Time 90 | . . . 90 . . . . . . . . . Parts Recycled . | . . . . . . . . . . . . . Recycled Matter . | . . . . . . . . . . . . . Retrieved Matter . | . . . . . . . . . . . . . Retrieved Components 7 | . 4 . . . . 2 1 . . . . . Parts Scanalyzed 7 | . . . 3 . 4 . . . . . . . Part Schematics Acquired 7 | . . . 3 . 4 . . . . . . . Parts Damaged . | . . . . . . . . . . . . . Bothacking | -11 -10 -10 -9 -9 -8 -8 -8 -6 -6 -6 -6 -6 ------------ Run | Yrd Mat Min Mat Min Mat Sto Rec Fac Low Low Zio Dee Used RIF Installer . | . . . . . . . . . . . . . Robots Hacked . | . . . . . . . . . . . . . Non-combat . | . . . . . . . . . . . . . Combat . | . . . . . . . . . . . . . Robot Hacks Applied . | . . . . . . . . . . . . . Relay Couplers Released . | . . . . . . . . . . . . . Fabnet Peak Effective % . | . . . . . . . . . . . . . Robots Rewired 9 | . . . . . . . 9 . . . . . Allies Hacked . | . . . . . . . . . . . . . Hacks Repelled . | . . . . . . . . . . . . . Allies | -11 -10 -10 -9 -9 -8 -8 -8 -6 -6 -6 -6 -6 -------- Run | Yrd Mat Min Mat Min Mat Sto Rec Fac Low Low Zio Dee Total Allies 23 | . . . . 4 . . 9 1 . . 9 . Largest Group 10 | . . . . 3 1 . 9 10 . . 9 9 Highest-Rated Group 397 | . . . . 40 16 . 184 194 . . 397 397 Highest-Rated Ally 96 | . . . . 31 16 . 34 34 . . 96 96 Total Orders 2 | . . . . 2 . . . . . . . . STAY 1 | . . . . 1 . . . . . . . . FOLLOW 1 | . . . . 1 . . . . . . . . Ally Attacks 155 | . . . . 41 19 . 10 23 . . . 62 Total Damage 3112 | . . . . 469 206 . 180 735 . . . 1522 Kills 29 | . . . . 8 3 . 2 7 . . . 9 Allies Corrupted . | . . . . . . . . . . . . . Allies Melted . | . . . . . . . . . . . . . Intel | -11 -10 -10 -9 -9 -8 -8 -8 -6 -6 -6 -6 -6 ------- Run | Yrd Mat Min Mat Min Mat Sto Rec Fac Low Low Zio Dee Robot Analysis Total 5 | . 2 . 1 . . . 2 . . . . . Derelict Logs Recovered 10 | . . 1 . 2 . . . . 3 2 2 . Drone Launches . | . . . . . . . . . . . . . Drone Recoveries . | . . . . . . . . . . . . . Exploration | -11 -10 -10 -9 -9 -8 -8 -8 -6 -6 -6 -6 -6 ------------- Run | Yrd Mat Min Mat Min Mat Sto Rec Fac Low Low Zio Dee Turns Passed 15096 | 65 1685 1165 3546 1996 1751 687 1742 575 524 272 519 569 Spaces Moved 9830 | 37 659 451 1152 739 512 233 678 1156 1057 876 1180 1100 Core 10 | 1 . . . . . . . . . . . 9 Treads 4367 | 36 659 359 1152 739 512 233 677 . . . . . Legs . | . . . . . . . . . . . . . Wheels 92 | . . 92 . . . . . . . . . . Hover . | . . . . . . . . . . . . . Flight 5361 | . . . . . . . 1 1156 1057 876 1180 1091 Fastest Speed 24 | 50 160 140 232 250 242 240 26 24 24 24 24 24 Average Speed 123 | 157 214 247 248 250 247 240 239 24 24 24 24 29 Slowest Speed 500 | 160 320 320 330 250 325 320 240 24 24 24 24 500 Overloaded Moves . | . . . . . . . . . . . . . Propulsion Burnouts . | . . . . . . . . . . . . . Robots Hopped 12 | . . . . . . . . 4 . . . 8 Cave-ins Triggered . | . . . . . . . . . . . . . Exploration Rate (%) 73 | 3 96 90 97 98 55 38 98 30 72 95 88 92 Regions Visited 12 Branch Regions 8 Pre-discovered Areas 2 | . . . . 1 . . . . . . 1 . Known Exits Taken 5 | . . . . . 1 . . 1 1 1 1 . Unknown Exits Taken 7 | 1 1 1 1 1 . 1 1 . . . . . Scrap Searched 13 | . . 1 . 2 . . . . 2 3 5 . Spaces Dug 47 | . . . 1 . 1 . . 29 5 2 6 3 Terrain Destroyed 75 | . . . 29 . 1 . . 29 5 2 6 3 Melee 42 | . . . 1 . 1 . . 24 5 2 6 3 Projectile . | . . . . . . . . . . . . . AOE 33 | . . . 28 . . . . 5 . . . . Terrain Rammed . | . . . . . . . . . . . . . Walls Destroyed . | . . . . . . . . . . . . . Machines Disabled . | . . . . . . . . . . . . . Actions | -11 -10 -10 -9 -9 -8 -8 -8 -6 -6 -6 -6 -6 --------- Run | Yrd Mat Min Mat Min Mat Sto Rec Fac Low Low Zio Dee Total 11893 | 42 805 493 1560 817 792 296 787 1373 1305 932 1379 1312 Wait 1060 | . 34 3 189 21 97 11 4 103 232 41 170 155 Move 9798 | 36 658 450 1151 738 511 232 677 1147 1056 875 1179 1088 Hop 8 | . . . . . . . . 4 . . . 4 Pick Up 105 | 1 20 14 23 6 17 2 5 9 1 1 2 4 Fast Attach 89 | 5 7 2 12 2 11 9 2 13 1 4 4 17 Attach 36 | . . . 7 1 6 1 12 5 . . . 4 Detach 8 | . . . 1 . 1 1 1 1 . 1 . 2 Swap 50 | . 7 . 9 1 7 2 2 10 2 2 1 7 Drop 147 | . 7 16 23 7 24 4 19 17 . 5 5 20 Fire 408 | . 69 7 137 40 112 34 8 1 . . . . Melee 100 | . . . 2 . 5 . . 48 13 3 18 11 Ram . | . . . . . . . . . . . . . Kick . | . . . . . . . . . . . . . Crush 12 | . 3 1 6 1 1 . . . . . . . Escape Stasis 15 | . . . . . . . . 15 . . . . Rewire 57 | . . . . . . . 57 . . . . . Trap . | . . . . . . . . . . . . . Miscellaneous . | . . . . . . . . . . . . . Route ------- -11/Scrapyard -10/Materials (discovered 5 exits: *Mat x3 / *Min x2) -10/Mines (discovered 3 exits: *Mat x2 / Sub) -9/Materials (discovered 5 exits: *Mat x3 / *Min x2) -9/Mines (discovered 3 exits: *Mat x2 / [*Exi]) -8/Materials (discovered 2 exits: *Sto x2) -8/Storage -8/Recycling -6/Factory (discovered 3 exits: [*Fac] / *Low x2) -6/Lower Caves -6/Lower Caves (discovered 2 exits: [*Fac] / *Zio) -6/Zion (discovered 2 exits: *Dee / [*Pro]) -6/Deep Caves History --------- Turn | Location | Event 10 | -11/Scrapyard | Discovered new exit (range 16) 66 | -11/Scrapyard | Entered Materials 314 | -10/Materials | Build established: Mutant 671 | -10/Materials | Discovered new exit (range 9) 908 | -10/Materials | Discovered new exit (range 16) 1129 | -10/Materials | Discovered new exit (range 11) 1291 | -10/Materials | Discovered new exit (range 16) 1401 | -10/Materials | Discovered new exit (range 13) 1566 | -10/Materials | Central database locked down 1751 | -10/Materials | Entered Mines 2142 | -10/Mines | Found the Drone Emporium 2166 | -10/Mines | Found Prototype Device 2361 | -10/Mines | Received a Rocket Launcher from a helpful Derelict 2381 | -10/Mines | Found a hidden stash of uninstalled traps 2398 | -10/Mines | Discovered new exit (range 6) 2458 | -10/Mines | Identified exit to Subcaves 2464 | -10/Mines | Met a Derelict shopkeep closing up shop 2744 | -10/Mines | Discovered new exit (range 6) 2916 | -10/Mines | Entered Materials 2916 | -9/Materials | Evolved 2 slots: Propulsion x1, Utility x1 2918 | -9/Materials | Identified Splice Drone Bay 3404 | -9/Materials | Destroyed 7 combat bots 3882 | -9/Materials | Discovered new exit (range 9) 4358 | -9/Materials | Discovered new exit (range 9) 4370 | -9/Materials | Central database locked down 4912 | -9/Materials | Discovered new exit (range 8) 5309 | -9/Materials | Discovered new exit (range 9) 5933 | -9/Materials | Repaired Lgt. Armor Plating 5973 | -9/Materials | Repaired Arm. Treads 6000 | -9/Materials | Repaired Lgt. Armor Plating 6057 | -9/Materials | Discovered new exit (range 13) 6462 | -9/Materials | Entered Mines 6621 | -9/Mines | Met a Derelict testing a Signal Generator 6645 | -9/Mines | Discovered new exit (range 5) 6772 | -9/Mines | Core integrity fell below 50% 7039 | -9/Mines | Deemed a non-threat by the Exiles lab entrance 7042 | -9/Mines | Discovered new exit (range 5) 7359 | -9/Mines | Assisted by bots powering up and referring to "LRC-V3" 7551 | -9/Mines | Discovered new exit (range 7) 7696 | -9/Mines | Learned location of Zion (-6) 8140 | -9/Mines | Met a Derelict who couldn't figure out how to use a Trap Extractor 8458 | -9/Mines | Entered Materials 8458 | -8/Materials | Accompanied by 1 ally 8458 | -8/Materials | Evolved 2 slots: Propulsion x1, Utility x1 8459 | -8/Materials | Identified exit to Storage 9689 | -8/Materials | Lost 5 parts (1p1n2u1w) 9941 | -8/Materials | Build established: Scavenger-Mutant 10091 | -8/Materials | Discovered exit to Storage (range 15) 10209 | -8/Materials | Entered Storage 10836 | -8/Storage | Used back door to open Recycling access 10836 | -8/Storage | Discovered new exit (range 4) 10896 | -8/Storage | Entered Recycling 11560 | -8/Recycling | Build established: Commander-Mutant 11588 | -8/Recycling | Discovered new exit (range 16) 12638 | -8/Recycling | Entered Factory 12638 | -6/Factory | Accompanied by 9 allies 12638 | -6/Factory | Evolved 4 slots: Propulsion x1, Utility x3 12690 | -6/Factory | Fabricated Imp. Propulsion Shielding (x2) 12712 | -6/Factory | Fabricated Imp. Utility Shielding (x2) 12796 | -6/Factory | Fabricated Imp. Hacking Suite? 12801 | -6/Factory | Fabricated Imp. Hacking Suite (x1) 12927 | -6/Factory | Build established: Commander-Scout 13038 | -6/Factory | Identified exit to Lower Caves 13038 | -6/Factory | Central database locked down 13126 | -6/Factory | Lost 5 allies 13166 | -6/Factory | Discovered new exit (range 21) 13181 | -6/Factory | Garrison activated, responded to threat 13213 | -6/Factory | Entered Lower Caves 13286 | -6/Lower Caves | Learned Factory terminal intel 13539 | -6/Lower Caves | Build established: Hacker-Scout 13631 | -6/Lower Caves | Learned location of 1 exit from Factory 13730 | -6/Lower Caves | Learned location of 1 exit from Factory 13735 | -6/Lower Caves | Discovered new exit (range 9) 13737 | -6/Lower Caves | Identified exit to Lower Caves 13737 | -6/Lower Caves | Entered another Lower Caves area 13738 | -6/Lower Caves | Encountered a Warlord checkpoint 13762 | -6/Lower Caves | Discovered new exit (range 18) 13844 | -6/Lower Caves | Learned Factory stockpile data 13917 | -6/Lower Caves | Learned location of 1 exit from Proximity Caves 13930 | -6/Lower Caves | Discovered new exit (range 19) 14009 | -6/Lower Caves | Identified exit to Zion 14009 | -6/Lower Caves | Entered Zion 14044 | -6/Zion | Discovered new exit (range 14) 14058 | -6/Zion | Given A8's code to call for help 14062 | -6/Zion | Learned Factory non-interactive machine intel 14072 | -6/Zion | Identified exit to Deep Caves 14075 | -6/Zion | Learned Factory emergency access door positions 14083 | -6/Zion | Gained Derelict followers 14094 | -6/Zion | Found CR-A16's Pointy Stick 14163 | -6/Zion | Learned location of 1 exit from Factory 14166 | -6/Zion | Gained Derelict followers 14492 | -6/Zion | Saw the warning signs outside the Deep Caves entrance 14499 | -6/Zion | Enhanced Grunt warped into view, answering call for help 14501 | -6/Zion | Enhanced Grunt warped into view, answering call for help 14528 | -6/Zion | Entered Deep Caves 14528 | -6/Deep Caves | Accompanied by 9 allies 14611 | -6/Deep Caves | Attacked by Z-Imprinter 14632 | -6/Deep Caves | Allies destroyed Z-Imprinter 14666 | -6/Deep Caves | Lost 5 allies 14711 | -6/Deep Caves | Z-Facility disabled 14793 | -6/Deep Caves | Found Prototype Protection 14793 | -6/Deep Caves | Identified Zio. Weapon Casing 14890 | -6/Deep Caves | Lost 3 allies 15060 | -6/Deep Caves | Spotted AG-47484 15064 | -6/Deep Caves | Spotted AG-01004 15069 | -6/Deep Caves | Triggered Deep Caves wall 15069 | -6/Deep Caves | Spotted AS-53551 15069 | -6/Deep Caves | Spotted AS-36080 15070 | -6/Deep Caves | Found Prototype Device 15070 | -6/Deep Caves | Identified Supersonic Drone Bay 15071 | -6/Deep Caves | Exposed GOLEM chamber 15073 | -6/Deep Caves | Found GOLEM Unit 15088 | -6/Deep Caves | Core integrity fell below 50% 15092 | -6/Deep Caves | Core integrity fell below 20% 15095 | -6/Deep Caves | Released all parts (5) 15097 | -6/Deep Caves | Destroyed by as-37373 with Assembled Rifle Last Messages --------------- as-76430 destroyed. as-22419 destroyed. Imp. Flight Unit destroyed. as-43131 released from Mobile Assembly Unit. as-71862 released from Mobile Assembly Unit. AG-47484: "DSI9AT1D G8OHIBQ29FWG 26R186 QD12WHW8W33 TDK1 81FTS" Imp. VTOL Module destroyed. Imp. Utility Shielding destroyed. as-37877 destroyed. Gravity Neutralizer destroyed. Imp. VTOL Module destroyed. as-85589 destroyed. as-43131 suffers critical hit (Destroy). as-29208 destroyed. Released Asb. Alloy Leg. Released GOLEM Unit. Released Enh. Optical Array. Released Imp. Signal Interpreter. Released Med. Storage Unit. Map ----- +----------------------------------------------------+ | ??????" #####?????????????##??????????????? | | ??????? # # #????????????## #?????????????? | | ??????"" # # #???????????## ##???????????? | | ??????? # #?##????????# #???????????? | | ??????"" # #? #???????## ##??????????? | | ??????? #? #??????## ###?????##?? | | ??????""" #? #?????## #???## ##? | | ??????" ## #?????# #???# #? | | ??????" # #####?# #??## #? | | ??????" #?# #### ## | | ??????# #???# ## # | | ?????"" ! ##???## # | | ????#"!" ###?????## ## ## | | ????#!"" #??????### ### ##? | | ????#""" a #####???????## #### #?? | | ??????"" "## #????????###?## #?? | | ????### = a ag ### ####?????????# #?# | | ?"""" asa # #?????????# #### | | " aaa a ########?????# ### | | " aaa !aa ""## #?????## #### | | " a== a aaa # ##????## #### | | " a a] ### ###### | | " = aa a aaa #### | | " / a #?# ###### | | " / #?# ###????## | | """"" /M g b @#?# ##????###### | | ????### ] / #?## ##??# #??? | | ??????"" ] !/ #??### ## ##?? | | ???????" #????## ### | | ???????" ] #?????## ### | | ???????" ! ##????## ##?## | | ??????"" b! = = #???## ###?####### | | ??????# ! ! = #???# ##??????# | | ??????" ! #???# #??????# | | ??????" ! ##### #?????? | | ??????" #????? | | ??????""" = #???? # | | ??????" ##???#### | | ??????"" ##### ##???????? | | ??????" g #???## ##????????? | | ???????" ##????## ####?????????? | | ??????? # # ???????####????????????? | | ??????? #### ## ## #???????????????????????? | | ????????" ##???# ?# ?##????????????????????????? | | ???????? ??????#??#????????????????????????????? | | ?????????????????????????????????????????????????? | | | | | | | | | +----------------------------------------------------+ Best States ------------- Heat Dissipation 45 Energy Generation 27 Energy Capacity 315 Matter Stores 300 Matter Capacity 300 Sight Range 22 Robot Scan Range 16 Terrain Scan Density 10 Additional Mass Support 12 Armor Coverage 800 Resistance: TH 20 Propulsion Shielding 66 Utility Shielding 66 Evasion (%) 65 Targeting Accuracy 8 Recoil Reduction 4 Offensive Hacking 24 Authchip Count 2 Item Schematics ----------------- ECM Suite | -10/Materials | Hacked Flight Unit | -9/Materials | Scanalyzed Hacking Suite | -9/Materials | Scanalyzed Adv. Weight Redist. System | -9/Materials | Scanalyzed Imp. Flight Unit | -8/Materials | Scanalyzed Katana | -8/Materials | Scanalyzed Mni. Grenade Launcher | -8/Materials | Scanalyzed Machine Analyzer | -8/Materials | Scanalyzed Imp. Propulsion Shielding | -8/Materials | Hacked Imp. Utility Shielding | -8/Storage | Hacked Imp. Hacking Suite | -6/Factory | Hacked Fusion Compressor | -6/Zion | Archive Adv. Plasma Cannon | -6/Zion | Archive Imp. Kinecellerator | -6/Zion | Archive Adv. Terrain Scanner | -6/Zion | Archive Imp. Thermal Shield | -6/Zion | Archive Matter Compressor | -6/Zion | Archive Adv. Transmission Jammer | -6/Zion | Archive Disruptor Cannon | -6/Zion | Archive Power Amplifier | -6/Zion | Archive Adv. Cooling System | -6/Zion | Archive Lgt. Fission Core | -6/Zion | Archive Imp. Weapon Cycler | -6/Zion | Archive Hpw. Shock Rifle | -6/Zion | Archive Imp. Armor Integrity Analyzer | -6/Zion | Archive Robot Schematics ------------------ R-06 Scavenger | -6/Zion | Archive A-15 Conveyor | -6/Zion | Archive M-28 Smith | -6/Zion | Archive X-77 Beamer | -6/Zion | Archive Fabricated ------------ Imp. Propulsion Shielding | x2 | -6/Factory | Authchip Imp. Utility Shielding | x2 | -6/Factory | Authchip Imp. Hacking Suite | x1 | -6/Factory Imp. Hacking Suite | x1 | -6/Factory Alien Tech Used ----------------- None Achievements -------------- Are We The Baddies? That's One Door That Should Stay Closed Challenges ------------ None Game ------ Seed LayeredMyomerRedirector Manual? 0 Play Time 02:23:10 Cumulative 208.4 hours Start 2024.06.26 @ 10:08:13 End 2024.06.26 @ 12:44:05 Sessions 1 Manual Loads 0 Difficulty Rogue Special Mode None Game No. 215 Rogue 215 Adventurer 0 Explorer 0 Win Type - Total 15 Types 14/0/0/1/0/0/0/0/0 Lore% 72 Gallery% 83 Achievement% 79 Wizard Run 0 Options --------- Layout 1 ASCII 0 Keyboard 0 Movement Numpad Keybinds 0 Fullscreen 1 Font 24/Smallcaps Map View 50x35 Zoom Use 0% Tactical HUD 1 Map Filters NONE Filters NONE Steam 1 RUN: 94f76bd0-55f1-4fdf-8c0d-678afd19a097